{"text_format":"1","workbook":"xlsx","n_sheets":4,"sheets":["Données","Match 01","Match 02","Match 03"],"not_rendered":{"charts":0,"images":0,"macros":0,"external_links":0,"defined_names":8,"comments":1,"pivot_tables":0},"unopened":[],"bounds":{"document_bytes":16777216,"sheet_cells":100000,"rows_first":2000,"rows_last":500,"rows_between":2000,"halvings":0,"cell_chars":16384,"cell_head_chars":4096},"cells_cut":0,"cells_raw":0,"read":"whole","date_system":"1900"}

{"sheet":"Données","index":0,"n_rows":542,"n_cols":14,"rows_kept":542,"cut":false,"hidden":true,"merged":[[0,1,0,3],[23,5,23,7],[23,8,23,10],[23,11,23,13]]}
["CLUBS","ADRESSES",null,null,"ABREGES",null,null,"Format"]
["ARGENCES BILLARD CLUB","***","Place de la République","14370   ARGENCES","ARGENCES (ABC)",null,null,"2,60 m"]
["ASSUN BILLARD","Le clos Moisson","325, allée des Avoineries","50460   URVILLE - NACQUEVILLE","URVILLE (ASSUN BC)",null,null,"2,80 m"]
["BILLARD AMICAL CLUB LOVERIEN","***","3, rue Saint Jean","27400   LOUVIERS","LOUVIERS (BACL)",null,null,"3,10 m"]
["BILLARD CLUB ANDELYSIEN","***","3 et 5, rue Ste Clotilde","27700   LES ANDELYS","LES ANDELYS (BCA)"]
["BILLARD CLUB CORMELLOIS","Halle des Sports","rue de la Pagnolée","14123   CORMELLES LE ROYAL","CORMELLES (BCC)"]
["BILLARD CLUB DE BERNAY","Gymnase Jacques Sébire","Chemin de la Couture","27300   BERNAY","BERNAY (BCB)"]
["BILLARD CLUB CANY BARVILLE","Complexe sportif Sporticaux","Route de Veulettes","76450   CANY - BARVILLE","CANY-BARVILLE (BCCB)"]
["BILLARD CLUB DE FECAMP","***","5, rue Henri Dunant","76400   FECAMP","FECAMP (BCF)"]
["BILLARD CLUB DE LA SAUSSAYE","Le Mille Club","rue Lesage  - Maille","27370   LA SAUSSAYE","LA SAUSSAYE (BCS)"]
["BILLARD CLUB DE MAROMME","***","29, rue Berrube","76150   MAROMME","MAROMME (MBC)"]
["BILLARD CLUB DE SAINT NICOLAS","***","93, rue Laurent Lefèbvre","76510   ST NICOLAS D'ALIERMONT","ST NICOLAS (BCSNA)"]
["BILLARD CLUB DE SAINT-MARCEL","Espace Saint Exupéry","2, rue Jules Ferry","27950   SAINT MARCEL","ST MARCEL (BCSM)"]
["BILLARD CLUB EBROICIEN","Maison des Jeunes et de la Cullture","1, avenue Aristide Briand","27000   EVREUX","EVREUX (BCE)"]
["BILLARD CLUB GAILLONNAIS","Centre des Arts Contemporains","Allée de l'Ermitage","27600   GAILLON","GAILLON (BCG)"]
["BILLARD CLUB LEXOVIEN","Maison des Jeunes et de la Cullture","13, boulevard Louis Pasteur","14100   LISIEUX","LISIEUX (BCL)"]
["BILLARD CLUB OSSELIEN","***","8, rue du manoir","76350   OISSEL","OISSEL (BCO)"]
["BILLARD CLUB PACEEN","***","12, rue Montferrand","27120   PACY SUR EURE","PACY/EURE (BCP)"]
["BILLARD CLUB SOTTEVILLAIS","***","123, rue Béranger","76300   SOTTEVILLE LES ROUEN","SOTTEVILLE (BCS)"]
["CLUB ECOLE HAVRAIS DE BILLARD","***","76, rue des Briquetiers","76600   LE HAVRE","LE HAVRE (CEHB)"]
["PATRONAGE LAIQUE ARGENTAN","Ecole Pierre Curie","Route de Urou","61200   ARGENTAN","ARGENTAN (PLA)"]
["ROUEN BILLARD CLUB","Espace de la Petite Bouverie","Allée Pierre de Coubertin","76100   ROUEN","ROUEN (RBC)"]
[]
[null,null,null,null,null,"Joueur 1",null,null,"Joueur 2",null,null,"Joueur 3"]
["Joueurs","Licences","Clubs",null,"Index","Mode","Points","Reprises","Mode","Points","Reprises","Mode","Points","Reprises"]
["ADNET FABRICE","017652Y","BILLARD AMICAL CLUB LOVERIEN",{"$f":"IFERROR(VLOOKUP(C26,$A$2:$E$22,5,FALSE),\"Club absent\")","v":"LOUVIERS (BACL)"},1,"Cadre 47/2",250,"Sans limite","Cadre 71/2",200,"Sans limite","Bande",120,"Sans limite"]
["AHAMD ABDUZALIL","134671R","BILLARD CLUB OSSELIEN","OISSEL (BCO)",2,"LIBRE",200,"Sans limite","Cadre 47/2",150,"Sans limite","Bande",80,"Sans limite"]
["ALEXANDRE JACQUES","017869H","BILLARD CLUB SOTTEVILLAIS","SOTTEVILLE (BCS)",3,"LIBRE",150,"Sans limite","Cadre 42/2",100,"Sans limite","Bande",60,"Sans limite"]
["ALIA AHMED","166242Y","BILLARD CLUB DE MAROMME","MAROMME (MBC)",4,"LIBRE",100,"Sans limite","LIBRE",80,"Sans limite","Bande",50,"Sans limite"]
["ALLART ELYSE","113094U","BILLARD CLUB DE SAINT-MARCEL","ST MARCEL (BCSM)",5,"LIBRE",60,40,"LIBRE",60,40,"LIBRE",40,40]
["ANDRE BERNARD","140477Z","ASSUN BILLARD","URVILLE (ASSUN BC)"]
["ANTEM ANTOINE","017606E","BILLARD CLUB DE LA SAUSSAYE","LA SAUSSAYE (BCS)"]
["ARGENTIN JEAN LUC","137351T","BILLARD CLUB DE FECAMP","FECAMP (BCF)"]
["ARRIVE JEAN LUC","100560S","BILLARD CLUB DE LA SAUSSAYE","LA SAUSSAYE (BCS)"]
["AUBE ALAIN","168020F","BILLARD CLUB DE MAROMME","MAROMME (MBC)"]
["AUBERT DANIEL","131880I","BILLARD CLUB ANDELYSIEN","LES ANDELYS (BCA)"]
["AUBERT JEAN PAUL","129110U","BILLARD CLUB ANDELYSIEN","LES ANDELYS (BCA)"]
["AZIZIAN RICHARD","017803T","BILLARD CLUB DE SAINT NICOLAS","ST NICOLAS (BCSNA)"]
["BACHELET KARINE","171761X","BILLARD CLUB CANY BARVILLE","CANY-BARVILLE (BCCB)"]
["BAERT PHILIPPE","172578K","CLUB ECOLE HAVRAIS DE BILLARD","LE HAVRE (CEHB)"]
["BAILLY NICOLAS","129095F","BILLARD AMICAL CLUB LOVERIEN","LOUVIERS (BACL)"]
["BAIS PHILIPPE","153013T","ROUEN BILLARD CLUB","ROUEN (RBC)"]
["BARBIER JEAN LUC","017571V","BILLARD CLUB EBROICIEN","EVREUX (BCE)"]
["BASSIERE JEAN PIERRE","154338J","BILLARD CLUB DE BERNAY","BERNAY (BCB)"]
["BATAILLE VINCENT","017754W","ROUEN BILLARD CLUB","ROUEN (RBC)"]
["BATTE JEAN MARC","017531H","BILLARD CLUB DE SAINT NICOLAS","ST NICOLAS (BCSNA)"]
["BAUDER GILBERT","017689J","BILLARD CLUB CANY BARVILLE","CANY-BARVILLE (BCCB)"]
["BAVILLE SYLVAIN","152619Q","BILLARD CLUB SOTTEVILLAIS","SOTTEVILLE (BCS)"]
["BAZAUD FRANCK","122758M","ROUEN BILLARD CLUB","ROUEN (RBC)"]
["BEAUGRAND CHRISTIAN","161679N","BILLARD CLUB CANY BARVILLE","CANY-BARVILLE (BCCB)"]
["BEAUVAIS JEAN FRANCOIS","140954I","CLUB ECOLE HAVRAIS DE BILLARD","LE HAVRE (CEHB)"]
["BEGUIN CLAUDE","150707M","BILLARD CLUB ANDELYSIEN","LES ANDELYS (BCA)"]
["BELDAME DANIEL","112270C","BILLARD CLUB DE LA SAUSSAYE","LA SAUSSAYE (BCS)"]
["BELINY GILLES","017706A","BILLARD CLUB DE LA SAUSSAYE","LA SAUSSAYE (BCS)"]
["BENDJEMILA TOFIR","017734C","ROUEN BILLARD CLUB","ROUEN (RBC)"]
["BERTRAND MICHEL","142970W","BILLARD CLUB SOTTEVILLAIS","SOTTEVILLE (BCS)"]
["BESLIN DANIEL","172500A","BILLARD CLUB CORMELLOIS","CORMELLES (BCC)"]
["BETON DOMINIQUE","017629B","BILLARD AMICAL CLUB LOVERIEN","LOUVIERS (BACL)"]
["BETON VALERIE","147263T","BILLARD AMICAL CLUB LOVERIEN","LOUVIERS (BACL)"]
["BEZARD GEORGES","137339H","BILLARD CLUB DE LA SAUSSAYE","LA SAUSSAYE (BCS)"]
["BEZNOSUC MARIE JOSE","169239F","BILLARD CLUB DE BERNAY","BERNAY (BCB)"]
["BIANCHINI JEAN ROBERT","106781Z","CLUB ECOLE HAVRAIS DE BILLARD","LE HAVRE (CEHB)"]
["BIDAULT ALAIN","160279R","ROUEN BILLARD CLUB","ROUEN (RBC)"]
["BIENAIME ERIC","162881V","BILLARD CLUB DE MAROMME","MAROMME (MBC)"]
["BIETTE CLAUDE","017497Z","BILLARD CLUB LEXOVIEN","LISIEUX (BCL)"]
["BILLARD DAVID","017465T","BILLARD CLUB CORMELLOIS","CORMELLES (BCC)"]
["BLIN ARMEL","169474L","BILLARD CLUB ANDELYSIEN","LES ANDELYS (BCA)"]
["BLONDEL JEAN THIERRY","144155L","CLUB ECOLE HAVRAIS DE BILLARD","LE HAVRE (CEHB)"]
["BOCQUAIN JEAN PIERRE","112554A","CLUB ECOLE HAVRAIS DE BILLARD","LE HAVRE (CEHB)"]
["BOGO JACQUES","138293Z","BILLARD CLUB LEXOVIEN","LISIEUX (BCL)"]
["BOITARD MARC","136732Y","BILLARD CLUB DE MAROMME","MAROMME (MBC)"]
["BONHOMME ERIC","144156M","CLUB ECOLE HAVRAIS DE BILLARD","LE HAVRE (CEHB)"]
["BOTREL DAVID","156426D","BILLARD CLUB DE MAROMME","MAROMME (MBC)"]
["BOUGOUIN JEAN MICHEL","149537Q","BILLARD CLUB CORMELLOIS","CORMELLES (BCC)"]
["BOULIER ALAIN","152578W","BILLARD CLUB DE SAINT-MARCEL","ST MARCEL (BCSM)"]
["BOURGET ALAIN","017466U","BILLARD CLUB CORMELLOIS","CORMELLES (BCC)"]
["BOUTILLOT CHRISTIAN","163734X","BILLARD CLUB DE LA SAUSSAYE","LA SAUSSAYE (BCS)"]
["BOUTIN GILLES","017457L","BILLARD CLUB DE MAROMME","MAROMME (MBC)"]
["BOUTIN GUY","124623F","ROUEN BILLARD CLUB","ROUEN (RBC)"]
["BOUTTIER JACKY","153690E","ROUEN BILLARD CLUB","ROUEN (RBC)"]
["BOUVIER BERTRAND","149399Q","BILLARD CLUB CORMELLOIS","CORMELLES (BCC)"]
["BOUVIER GUILLAUME","149400R","BILLARD CLUB CORMELLOIS","CORMELLES (BCC)"]
["BOUXIN ERIC","167390W","BILLARD CLUB DE MAROMME","MAROMME (MBC)"]
["BRAEMS FLORIAN","160931A","BILLARD CLUB CANY BARVILLE","CANY-BARVILLE (BCCB)"]
["BREUGNON BERNARD","167321W","BILLARD CLUB GAILLONNAIS","GAILLON (BCG)"]
["BROWANG CLAUDE","107038W","BILLARD CLUB GAILLONNAIS","GAILLON (BCG)"]
["BROWANG ERIC","170924M","BILLARD CLUB DE LA SAUSSAYE","LA SAUSSAYE (BCS)"]
["BROWANG JEROME","107039X","BILLARD CLUB GAILLONNAIS","GAILLON (BCG)"]
["BROWANG MICHEL","107040Y","BILLARD CLUB GAILLONNAIS","GAILLON (BCG)"]
["BRULARD DANIEL","017658E","BILLARD AMICAL CLUB LOVERIEN",{"$f":"IFERROR(VLOOKUP(C90,$A$2:$E$22,5,FALSE),\"Club absent\")","v":"LOUVIERS (BACL)"}]
["BRUNET ANDRE","017746O","BILLARD CLUB LEXOVIEN","LISIEUX (BCL)"]
["BUDIN BERNARD","163871W","ASSUN BILLARD","URVILLE (ASSUN BC)"]
["BURGOT FRANCINE","169893R","BILLARD CLUB SOTTEVILLAIS","SOTTEVILLE (BCS)"]
["BURGOT FRANCOIS","169892Q","BILLARD CLUB SOTTEVILLAIS","SOTTEVILLE (BCS)"]
["BUSTOS MIGUEL ANGEL","171767D","ROUEN BILLARD CLUB","ROUEN (RBC)"]
["BUTELET JEAN PAUL","017610I","BILLARD CLUB DE LA SAUSSAYE","LA SAUSSAYE (BCS)"]
["CADINOT SEBASTIEN","158947T","BILLARD CLUB OSSELIEN","OISSEL (BCO)"]
["CAJEAN PHILIPPE","010634A","BILLARD CLUB EBROICIEN","EVREUX (BCE)"]
["CALLENS TIMEO","166291B","BILLARD CLUB CANY BARVILLE","CANY-BARVILLE (BCCB)"]
["CARDON JEAN CLAUDE","017542S","BILLARD CLUB SOTTEVILLAIS","SOTTEVILLE (BCS)"]
["CARLIER ALAIN","153754Z","BILLARD CLUB ANDELYSIEN","LES ANDELYS (BCA)"]
["CARPENTIER CHRISTIAN","135579P","BILLARD CLUB PACEEN","PACY/EURE (BCP)"]
["CARPENTIER DIDIER","152654D","BILLARD CLUB DE FECAMP","FECAMP (BCF)"]
["CARRE PIERRE","017467V","BILLARD CLUB CORMELLOIS","CORMELLES (BCC)"]
["CAUWET NOEL","104533N","ROUEN BILLARD CLUB","ROUEN (RBC)"]
["CAZAUX JEAN MARC","017643P","CLUB ECOLE HAVRAIS DE BILLARD","LE HAVRE (CEHB)"]
["CAZEAUBON SERGE","167848T","CLUB ECOLE HAVRAIS DE BILLARD","LE HAVRE (CEHB)"]
["CHAGNOT JEAN CLAUDE","017621T","BILLARD CLUB OSSELIEN","OISSEL (BCO)"]
["CHALVET PATRICE","018027J","BILLARD CLUB DE SAINT-MARCEL","ST MARCEL (BCSM)"]
["CHAMP FRANCOIS","159430T","ROUEN BILLARD CLUB","ROUEN (RBC)"]
["CHANSON PIERRE","111053H","ASSUN BILLARD","URVILLE (ASSUN BC)"]
["CHAPLEAU FRANCOIS","137817R","CLUB ECOLE HAVRAIS DE BILLARD","LE HAVRE (CEHB)"]
["CHARBONNIER PHILIPPE","127340S","BILLARD CLUB CANY BARVILLE","CANY-BARVILLE (BCCB)"]
["CHARRON EDITH","169334J","ARGENCES BILLARD CLUB","ARGENCES (ABC)"]
["CHESNEAU JACQUES","133832K","BILLARD CLUB DE SAINT-MARCEL","ST MARCEL (BCSM)"]
["CHESNEL MATHIEU","017896I","BILLARD CLUB DE SAINT NICOLAS","ST NICOLAS (BCSNA)"]
["CHESNEL PATRICK","116629T","BILLARD CLUB DE SAINT NICOLAS","ST NICOLAS (BCSNA)"]
["CHEVALIER PHILIPPE","126208E","BILLARD CLUB DE BERNAY","BERNAY (BCB)"]
["CHEVON NOA","168778E","ROUEN BILLARD CLUB","ROUEN (RBC)"]
["CHOLLET LIONEL","107240Q","BILLARD CLUB DE LA SAUSSAYE","LA SAUSSAYE (BCS)"]
["CHOQUART PIERRE","133876C","BILLARD CLUB SOTTEVILLAIS","SOTTEVILLE (BCS)"]
["CHOUPAUT BRUNO","151711D","BILLARD CLUB SOTTEVILLAIS","SOTTEVILLE (BCS)"]
["CLEMENT FABRICE","152233W","BILLARD CLUB DE MAROMME","MAROMME (MBC)"]
["COCHARD PATRICK","145961X","BILLARD AMICAL CLUB LOVERIEN","LOUVIERS (BACL)"]
["COCY GILLES","017709D","CLUB ECOLE HAVRAIS DE BILLARD","LE HAVRE (CEHB)"]
["COLINET JEAN LUC","153098L","BILLARD CLUB ANDELYSIEN","LES ANDELYS (BCA)"]
["COLLE GREGORY","017823N","BILLARD CLUB OSSELIEN","OISSEL (BCO)"]
["COLLE CONTE ILANE","172024H","BILLARD CLUB SOTTEVILLAIS","SOTTEVILLE (BCS)"]
["COLLE CONTE LUDOVIC","172023G","BILLARD CLUB SOTTEVILLAIS","SOTTEVILLE (BCS)"]
["COLLERY GABRIEL","172379T","BILLARD CLUB DE BERNAY","BERNAY (BCB)"]
["COLOMER ALAIN","172501B","BILLARD CLUB CORMELLOIS","CORMELLES (BCC)"]
["CORNO YVES","142307J","BILLARD CLUB PACEEN","PACY/EURE (BCP)"]
["COTTEN JEAN PIERRE","017516S","ROUEN BILLARD CLUB","ROUEN (RBC)"]
["COUCHOT BERNARD","112010C","BILLARD CLUB CORMELLOIS","CORMELLES (BCC)"]
["COURTOIS PIERRE","168350P","BILLARD CLUB DE MAROMME","MAROMME (MBC)"]
["CUVIER GILLES","120322U","BILLARD CLUB CANY BARVILLE","CANY-BARVILLE (BCCB)"]
["CUVILLIEZ FRANCOISE","150560C","BILLARD CLUB DE FECAMP","FECAMP (BCF)"]
["DAIGLE MICHEL","145242G","BILLARD CLUB CORMELLOIS","CORMELLES (BCC)"]
["DAIREAUX SERGE","106824Q","BILLARD CLUB EBROICIEN","EVREUX (BCE)"]
["DAON OLIVIER","169727L","ARGENCES BILLARD CLUB","ARGENCES (ABC)"]
["DAUBEUF THIERRY","170708C","CLUB ECOLE HAVRAIS DE BILLARD","LE HAVRE (CEHB)"]
["DAUSSY JEAN CLAUDE","148177M","BILLARD CLUB DE FECAMP","FECAMP (BCF)"]
["DAUTRY ANNICK","106284W","BILLARD AMICAL CLUB LOVERIEN","LOUVIERS (BACL)"]
["DAVITTI CLAUDE","144074I","BILLARD CLUB OSSELIEN","OISSEL (BCO)"]
["DAVOINE BRUNO","017482K","ROUEN BILLARD CLUB","ROUEN (RBC)"]
["DE TOFFOLI JEAN ANTOINE","017476E","BILLARD CLUB GAILLONNAIS","GAILLON (BCG)"]
["DEFREVILLE ANTHONY","157510G","BILLARD CLUB DE MAROMME","MAROMME (MBC)"]
["DELALANDRE FRANCOIS","168981A","BILLARD CLUB CANY BARVILLE","CANY-BARVILLE (BCCB)"]
["DELALANDRE VERONIQUE","168982B","BILLARD CLUB CANY BARVILLE","CANY-BARVILLE (BCCB)"]
["DELALONDRE MAX","110690I","BILLARD AMICAL CLUB LOVERIEN","LOUVIERS (BACL)"]
["DELAMARRE ERIC","129114Y","BILLARD AMICAL CLUB LOVERIEN","LOUVIERS (BACL)"]
["DELARUE GILLES","169557B","BILLARD CLUB EBROICIEN","EVREUX (BCE)"]
["DELARUE JEAN FRANCOIS","165274W","BILLARD CLUB OSSELIEN","OISSEL (BCO)"]
["DELIGNY JEAN CLAUDE","100518C","BILLARD CLUB DE FECAMP",{"$f":"IFERROR(VLOOKUP(C154,$A$2:$E$22,5,FALSE),\"Club absent\")","v":"FECAMP (BCF)"}]
["DEMAREST MARCEL","170125T","BILLARD CLUB ANDELYSIEN","LES ANDELYS (BCA)"]
["DEMERE CHRISTIAN","124007N","CLUB ECOLE HAVRAIS DE BILLARD","LE HAVRE (CEHB)"]
["DEMOTTAIS JEAN JACQUES","165991A","BILLARD CLUB DE MAROMME","MAROMME (MBC)"]
["DENZEN LELAIDIER DOLCHE","168817X","BILLARD CLUB CORMELLOIS","CORMELLES (BCC)"]
["DEPARIS PATRICK","142823F","BILLARD CLUB DE SAINT NICOLAS","ST NICOLAS (BCSNA)"]
["DERONGS DANIEL","147139J","BILLARD CLUB ANDELYSIEN","LES ANDELYS (BCA)"]
["DESCHAMPS MICHEL","172071J","BILLARD CLUB DE BERNAY","BERNAY (BCB)"]
["DESHAYES YANN","172018B","BILLARD AMICAL CLUB LOVERIEN","LOUVIERS (BACL)"]
["DESLANDES WILFRIED","147559Q","CLUB DE POOL VERNON","Club absent"]
["DESMARES DOMINIQUE","165839K","BILLARD CLUB DE MAROMME","MAROMME (MBC)"]
["DESOUDIN CEDRIC","157256F","BILLARD CLUB DE MAROMME","MAROMME (MBC)"]
["DESSERRE ALEXANDRE","136733Z","BILLARD CLUB DE MAROMME","MAROMME (MBC)"]
["DEZETANT MARCEL","017627Z","BILLARD CLUB DE LA SAUSSAYE","LA SAUSSAYE (BCS)"]
["DIAGA RADJOU VINCENT","109583T","BILLARD CLUB CANY BARVILLE","CANY-BARVILLE (BCCB)"]
["DOMENGER JEAN FRANCOIS","164326Q","CLUB ECOLE HAVRAIS DE BILLARD","LE HAVRE (CEHB)"]
["DONNEGER ABEL","017790G","ROUEN BILLARD CLUB","ROUEN (RBC)"]
["DROGUE GILLES","138388Q","ASSUN BILLARD","URVILLE (ASSUN BC)"]
["DU BOUCHAGE MICKAEL","126212I","BILLARD CLUB CORMELLOIS","CORMELLES (BCC)"]
["DUBOIS THIERRY","169451L","ARGENCES BILLARD CLUB","ARGENCES (ABC)"]
["DUBOISREVENU GERALD","134693N","ARGENCES BILLARD CLUB","ARGENCES (ABC)"]
["DUBUC GUILLAUME","166097Q","BILLARD CLUB DE MAROMME","MAROMME (MBC)"]
["DUBUC LOUIS","166098R","BILLARD CLUB DE MAROMME","MAROMME (MBC)"]
["DUCATHE PHILIPPE","164840Z","BILLARD CLUB CANY BARVILLE","CANY-BARVILLE (BCCB)"]
["DUCROCQ DIDIER","145451H","BILLARD CLUB DE LA SAUSSAYE","LA SAUSSAYE (BCS)"]
["DUMARTIN BERTRAND","163172L","BILLARD AMICAL CLUB LOVERIEN","LOUVIERS (BACL)"]
["DUMOND PIERRE","136046O","BILLARD CLUB DE SAINT-MARCEL","ST MARCEL (BCSM)"]
["DUONG KHENN","161710X","BILLARD AMICAL CLUB LOVERIEN","LOUVIERS (BACL)"]
["DUPONCHEL ALAIN","112556C","CLUB ECOLE HAVRAIS DE BILLARD","LE HAVRE (CEHB)"]
["DUPRE PATRICK","100586S","BILLARD CLUB CANY BARVILLE","CANY-BARVILLE (BCCB)"]
["DURANTI GILLES","138224I","CLUB ECOLE HAVRAIS DE BILLARD","LE HAVRE (CEHB)"]
["DURDEK ALAIN","168816W","BILLARD CLUB CORMELLOIS","CORMELLES (BCC)"]
["DUTHEIL JACQUES","138165B","BILLARD CLUB SOTTEVILLAIS","SOTTEVILLE (BCS)"]
["DUTHIL JEAN","017820K","BILLARD CLUB SOTTEVILLAIS","SOTTEVILLE (BCS)"]
["DUTOT DAMIEN","142404C","BILLARD CLUB DE FECAMP","FECAMP (BCF)"]
["DUTOT GERALD","145692O","CLUB ECOLE HAVRAIS DE BILLARD","LE HAVRE (CEHB)"]
["DUVAL BERNARD","140957L","CLUB ECOLE HAVRAIS DE BILLARD","LE HAVRE (CEHB)"]
["DUVAL JEAN PAUL","157684W","BILLARD CLUB DE FECAMP","FECAMP (BCF)"]
["DUVAL LUDOVIC","159869W","BILLARD CLUB EBROICIEN","EVREUX (BCE)"]
["DUVAL MICHEL","146926C","BILLARD CLUB DE SAINT NICOLAS","ST NICOLAS (BCSNA)"]
["DUVAL RENE","129045H","BILLARD CLUB CORMELLOIS","CORMELLES (BCC)"]
["ECOURTEMER STEPHANE","018131J","ASSUN BILLARD","URVILLE (ASSUN BC)"]
["EICHHOLTZER CLAUDE","125798K","BILLARD CLUB DE FECAMP","FECAMP (BCF)"]
["ELIE JOANNES","142933L","ARGENCES BILLARD CLUB","ARGENCES (ABC)"]
["ERLENBACH FRANCOIS","155194P","CLUB ECOLE HAVRAIS DE BILLARD","LE HAVRE (CEHB)"]
["ERONTE MICHEL","017986U","BILLARD CLUB SOTTEVILLAIS","SOTTEVILLE (BCS)"]
["ESLIER GUY","112009B","BILLARD CLUB CORMELLOIS","CORMELLES (BCC)"]
["ESTRIER JEAN CLAUDE","017770M","CLUB ECOLE HAVRAIS DE BILLARD","LE HAVRE (CEHB)"]
["EUDIER DIDIER","159595Y","CLUB ECOLE HAVRAIS DE BILLARD","LE HAVRE (CEHB)"]
["EUDIER MICHEL","017713H","PATRONAGE LAIQUE ARGENTAN","ARGENTAN (PLA)"]
["EVRARD JAMES","157076K","BILLARD CLUB DE LA SAUSSAYE","LA SAUSSAYE (BCS)"]
["EVRARD LYLIAN","153268W","BILLARD CLUB DE LA SAUSSAYE","LA SAUSSAYE (BCS)"]
["FACQUET SUKMA","152234X","ROUEN BILLARD CLUB","ROUEN (RBC)"]
["FACQUET VINCENT","013085H","ROUEN BILLARD CLUB","ROUEN (RBC)"]
["FAISANT RAYMOND","012137V","ROUEN BILLARD CLUB","ROUEN (RBC)"]
["FERNANDEZ ROBIN","141784G","BILLARD CLUB CANY BARVILLE","CANY-BARVILLE (BCCB)"]
["FERRON JEAN MARC","164847G","BILLARD CLUB DE BERNAY","BERNAY (BCB)"]
["FESTE MICHEL","169338N","ARGENCES BILLARD CLUB","ARGENCES (ABC)"]
["FLEURY YVES","100521F","BILLARD CLUB CORMELLOIS","CORMELLES (BCC)"]
["FONTAINE YANN","131886O","ROUEN BILLARD CLUB","ROUEN (RBC)"]
["FOSSEY MATHIEU","168801E","BILLARD CLUB PACEEN","PACY/EURE (BCP)"]
["FOUCRET STEPHANE","104154Y","BILLARD CLUB DE SAINT-MARCEL","ST MARCEL (BCSM)"]
["FOURNIAL CHRISTIAN","150542H","BILLARD CLUB ANDELYSIEN","LES ANDELYS (BCA)"]
["FRANCOIS RENE","108288Y","BILLARD CLUB SOTTEVILLAIS","SOTTEVILLE (BCS)"]
["FRANGNE PHILIPPE","165902D","BILLARD CLUB DE MAROMME",{"$f":"IFERROR(VLOOKUP(C218,$A$2:$E$22,5,FALSE),\"Club absent\")","v":"MAROMME (MBC)"}]
["FREGER XAVIER","168691K","BILLARD CLUB DE FECAMP","FECAMP (BCF)"]
["GALAN JEAN CLAUDE","142631V","BILLARD CLUB ANDELYSIEN","LES ANDELYS (BCA)"]
["GARO NAEL","156465W","BILLARD CLUB PACEEN","PACY/EURE (BCP)"]
["GARREAU CYRIL","147667H","BILLARD AMICAL CLUB LOVERIEN","LOUVIERS (BACL)"]
["GASCHY DAMIEN","160307X","BILLARD AMICAL CLUB LOVERIEN","LOUVIERS (BACL)"]
["GAUTIER ALAIN","169561F","BILLARD CLUB CORMELLOIS","CORMELLES (BCC)"]
["GERMAIN CYRILLE","017461P","BILLARD CLUB DE BERNAY","BERNAY (BCB)"]
["GERVAIS PHILIPPE","152579X","BILLARD CLUB CANY BARVILLE","CANY-BARVILLE (BCCB)"]
["GESTIN JACQUES","154536Z","BILLARD CLUB LEXOVIEN","LISIEUX (BCL)"]
["GEYER SERGE","017687H","BILLARD CLUB DE SAINT-MARCEL","ST MARCEL (BCSM)"]
["GILLE PHILIPPE","102207B","BILLARD CLUB DE FECAMP","FECAMP (BCF)"]
["GILLOT MARCEL","013242I","BILLARD AMICAL CLUB LOVERIEN","LOUVIERS (BACL)"]
["GLINEL MORTREUIL CLAUDE","165097D","BILLARD CLUB DE MAROMME","MAROMME (MBC)"]
["GNOCCHI GIANPAOLO","124614W","BILLARD CLUB SOTTEVILLAIS","SOTTEVILLE (BCS)"]
["GOARNISSON VALENTIN","162096R","ROUEN BILLARD CLUB","ROUEN (RBC)"]
["GODILLE SYLVAIN","126213J","BILLARD CLUB CORMELLOIS","CORMELLES (BCC)"]
["GONZALES JOSE","107057P","BILLARD CLUB CORMELLOIS","CORMELLES (BCC)"]
["GOREGUES LOIC","143286A","ROUEN BILLARD CLUB","ROUEN (RBC)"]
["GOSNON OLIVIER","127187V","ARGENCES BILLARD CLUB","ARGENCES (ABC)"]
["GOUDIER DANIELLE","137446K","BILLARD CLUB LEXOVIEN","LISIEUX (BCL)"]
["GOUGEAUD MICHEL","137819T","CLUB ECOLE HAVRAIS DE BILLARD","LE HAVRE (CEHB)"]
["GOUSSETIS GEORGES","112008A","ROUEN BILLARD CLUB","ROUEN (RBC)"]
["GOUSSIN JEAN PAUL","018086Q","CLUB ECOLE HAVRAIS DE BILLARD","LE HAVRE (CEHB)"]
["GRANDSIRE ALAIN","158946S","BILLARD CLUB OSSELIEN","OISSEL (BCO)"]
["GRASSIN MICHEL","143290E","BILLARD CLUB EBROICIEN","EVREUX (BCE)"]
["GRENET LOUIS","141991F","BILLARD CLUB DE SAINT NICOLAS","ST NICOLAS (BCSNA)"]
["GRENU GUY","156138Q","BILLARD CLUB SOTTEVILLAIS","SOTTEVILLE (BCS)"]
["GRETILLAT XAVIER","138447X","BILLARD CLUB OSSELIEN","OISSEL (BCO)"]
["GROSDEMANGE JULIEN","144620I","BILLARD CLUB DE SAINT NICOLAS","ST NICOLAS (BCSNA)"]
["GUERET GERARD","018138Q","BILLARD CLUB SOTTEVILLAIS","SOTTEVILLE (BCS)"]
["GUERIN DAVID","017939Z","ROUEN BILLARD CLUB","ROUEN (RBC)"]
["GUEROULT DOMINIQUE","157731X","BILLARD CLUB SOTTEVILLAIS","SOTTEVILLE (BCS)"]
["GUEROUT JEAN PIERRE","156477J","BILLARD CLUB SOTTEVILLAIS","SOTTEVILLE (BCS)"]
["GUIGNON ERIC","017536M","BILLARD CLUB DE SAINT NICOLAS","ST NICOLAS (BCSNA)"]
["GUIGNON JIM","017537N","BILLARD CLUB DE SAINT NICOLAS","ST NICOLAS (BCSNA)"]
["GUILLAUME MICHEL","169779S","BILLARD CLUB SOTTEVILLAIS","SOTTEVILLE (BCS)"]
["GUINCETRE FRANCOIS","143613P","CLUB ECOLE HAVRAIS DE BILLARD","LE HAVRE (CEHB)"]
["GUYADER ERWAN","152484T","BILLARD CLUB EBROICIEN","EVREUX (BCE)"]
["GUYADER GAEL","017653Z","BILLARD CLUB EBROICIEN","EVREUX (BCE)"]
["HABRAN JEAN PIERRE","163902E","BILLARD CLUB DE BERNAY","BERNAY (BCB)"]
["HAFED LAURENT","116626Q","BILLARD CLUB CORMELLOIS","CORMELLES (BCC)"]
["HAQUIN HERVE","147303M","ASSUN BILLARD","URVILLE (ASSUN BC)"]
["HAUBERDON RENE","140340S","BILLARD CLUB DE FECAMP","FECAMP (BCF)"]
["HAUCK MICHEL","125710A","BILLARD CLUB CANY BARVILLE","CANY-BARVILLE (BCCB)"]
["HAVEZ DAVID","154374Y","BILLARD CLUB DE MAROMME","MAROMME (MBC)"]
["HAZART HAMEL GERARD","134863B","BILLARD CLUB SOTTEVILLAIS","SOTTEVILLE (BCS)"]
["HENRY CATHERINE","156840D","CLUB ECOLE HAVRAIS DE BILLARD","LE HAVRE (CEHB)"]
["HENRY SERGE","017637J","CLUB ECOLE HAVRAIS DE BILLARD","LE HAVRE (CEHB)"]
["HEQUET JEAN FRANCOIS","172304M","BILLARD CLUB ANDELYSIEN","LES ANDELYS (BCA)"]
["HIDEE SEBASTIEN","172025J","BILLARD CLUB SOTTEVILLAIS","SOTTEVILLE (BCS)"]
["HOMMET CHARLES","105787T","ROUEN BILLARD CLUB","ROUEN (RBC)"]
["HONG PHI BANG","166245B","BILLARD AMICAL CLUB LOVERIEN","LOUVIERS (BACL)"]
["HORCHOLLES DAVID","018123B","BILLARD CLUB GAILLONNAIS","GAILLON (BCG)"]
["HOREL CHRISTIAN","106832Y","BILLARD CLUB CORMELLOIS","CORMELLES (BCC)"]
["HUARD SEBASTIEN","155987B","BILLARD CLUB DE MAROMME","MAROMME (MBC)"]
["HUBERT CLAUDE","153902K","ROUEN BILLARD CLUB","ROUEN (RBC)"]
["HUBERT YVON","161713A","BILLARD CLUB CANY BARVILLE","CANY-BARVILLE (BCCB)"]
["HUE JEAN","140475X","BILLARD CLUB CORMELLOIS","CORMELLES (BCC)"]
["HUET JEAN LOUIS","145695R","CLUB ECOLE HAVRAIS DE BILLARD","LE HAVRE (CEHB)"]
["HUGER MICHEL","017614M","BILLARD CLUB DE LA SAUSSAYE","LA SAUSSAYE (BCS)"]
["IPPOLITO PASCAL","018041X","BILLARD CLUB SOTTEVILLAIS","SOTTEVILLE (BCS)"]
["JACQ LAURENT","017912Y","ROUEN BILLARD CLUB","ROUEN (RBC)"]
["JAFFRAY THIERRY","104165J","BILLARD CLUB CORMELLOIS","CORMELLES (BCC)"]
["JAMI M HAMED","168259Q","BILLARD CLUB SOTTEVILLAIS",{"$f":"IFERROR(VLOOKUP(C282,$A$2:$E$22,5,FALSE),\"Club absent\")","v":"SOTTEVILLE (BCS)"}]
["JAQUINANDI DANIEL","013391B","BILLARD CLUB CANY BARVILLE","CANY-BARVILLE (BCCB)"]
["JUBLOT DENIS","017978M","BILLARD CLUB DE MAROMME","MAROMME (MBC)"]
["JUMELIN ALEXIS","172609T","ARGENCES BILLARD CLUB","ARGENCES (ABC)"]
["JUMELIN EMMANUEL","140473V","ARGENCES BILLARD CLUB","ARGENCES (ABC)"]
["KAHOFER ARNIM","140034Y","BILLARD CLUB OSSELIEN","OISSEL (BCO)"]
["KENZEY PATRICK","017485N","BILLARD CLUB EBROICIEN","EVREUX (BCE)"]
["LALLEMAND DIDIER","017874M","ASSUN BILLARD","URVILLE (ASSUN BC)"]
["LAMBERT EUDES","140033X","PATRONAGE LAIQUE ARGENTAN","ARGENTAN (PLA)"]
["LANGEVIN THIERY","168815V","BILLARD CLUB CORMELLOIS","CORMELLES (BCC)"]
["LANGLOIS CHRISTIAN","018105J","CLUB ECOLE HAVRAIS DE BILLARD","LE HAVRE (CEHB)"]
["LANIEU JASON","163789G","BILLARD CLUB CANY BARVILLE","CANY-BARVILLE (BCCB)"]
["LAPERT PATRICK","116636A","CLUB DE POOL VERNON","Club absent"]
["LAURENT PHILIPPE","112307N","BILLARD CLUB SOTTEVILLAIS","SOTTEVILLE (BCS)"]
["LAURENT VALERY","017732A","ROUEN BILLARD CLUB","ROUEN (RBC)"]
["LE CAER THIERRY","129144C","BILLARD CLUB ANDELYSIEN","LES ANDELYS (BCA)"]
["LE MESLE CHRISTOPHE","165122F","BILLARD CLUB EBROICIEN","EVREUX (BCE)"]
["LE MOULEC ALAIN","135751F","CLUB ECOLE HAVRAIS DE BILLARD","LE HAVRE (CEHB)"]
["LE MOULEC JOHNNY","135752G","CLUB ECOLE HAVRAIS DE BILLARD","LE HAVRE (CEHB)"]
["LE RAILLER GERALD","151478A","BILLARD CLUB DE SAINT NICOLAS","ST NICOLAS (BCSNA)"]
["LEBEGUE JEAN","157910R","ARGENCES BILLARD CLUB","ARGENCES (ABC)"]
["LEBOUCHER PASCAL","126223T","CLUB ECOLE HAVRAIS DE BILLARD","LE HAVRE (CEHB)"]
["LEBOURGEOIS PHILIPPE","017763F","ROUEN BILLARD CLUB","ROUEN (RBC)"]
["LEBRETON ALAIN","013523D","BILLARD CLUB LEXOVIEN","LISIEUX (BCL)"]
["LECANU JEAN MARC","169320T","BILLARD CLUB DE LA SAUSSAYE","LA SAUSSAYE (BCS)"]
["LECLERC MARC","165970C","BILLARD CLUB PACEEN","PACY/EURE (BCP)"]
["LECOEUR RENEE","145449F","BILLARD CLUB DE LA SAUSSAYE","LA SAUSSAYE (BCS)"]
["LECORNE LAURENT","171962Q","BILLARD CLUB DE SAINT-MARCEL","ST MARCEL (BCSM)"]
["LEDUC PATRICK","142969V","BILLARD CLUB CORMELLOIS","CORMELLES (BCC)"]
["LEDUEY LUDOVIC","110509J","BILLARD CLUB DE MAROMME","MAROMME (MBC)"]
["LEFEBVRE BERNARD","159458Z","ROUEN BILLARD CLUB","ROUEN (RBC)"]
["LEFEVRE PHILIPPE","017875N","ARGENCES BILLARD CLUB","ARGENCES (ABC)"]
["LEFEVRE YANNICK","147057V","BILLARD CLUB LEXOVIEN","LISIEUX (BCL)"]
["LEGEMBRE KILLIAN","171482T","BILLARD CLUB CANY BARVILLE","CANY-BARVILLE (BCCB)"]
["LEGENDRE CEDRIC","011123V","ROUEN BILLARD CLUB","ROUEN (RBC)"]
["LEGENDRE CHARLES","153994K","ROUEN BILLARD CLUB","ROUEN (RBC)"]
["LEGENDRE GERARD","131482A","BILLARD CLUB DE SAINT NICOLAS","ST NICOLAS (BCSNA)"]
["LEGENDRE NATHAN","148558B","ROUEN BILLARD CLUB","ROUEN (RBC)"]
["LEGRAND PHILIPPE","166852L","BILLARD CLUB CANY BARVILLE","CANY-BARVILLE (BCCB)"]
["LEGRET ALEXIAN","144318S","BILLARD CLUB CORMELLOIS","CORMELLES (BCC)"]
["LEHARIVEL DENIS","124649F","BILLARD CLUB CORMELLOIS","CORMELLES (BCC)"]
["LEJEUNE BRUNO","166608W","BILLARD CLUB SOTTEVILLAIS","SOTTEVILLE (BCS)"]
["LELEVRIER MICHEL","153100N","BILLARD AMICAL CLUB LOVERIEN","LOUVIERS (BACL)"]
["LELIEVRE ANTOINE","166141N","ARGENCES BILLARD CLUB","ARGENCES (ABC)"]
["LELOIR MICHEL","017997F","BILLARD CLUB DE SAINT NICOLAS","ST NICOLAS (BCSNA)"]
["LEMOIGNE PIERRE","127747J","BILLARD CLUB PACEEN","PACY/EURE (BCP)"]
["LENOIR JEAN MARC","169351C","BILLARD CLUB DE BERNAY","BERNAY (BCB)"]
["LEPINAY PIERRE","017597V","BILLARD CLUB LEXOVIEN","LISIEUX (BCL)"]
["LEPLANOIS VIRGINIE","169234A","BILLARD CLUB DE BERNAY","BERNAY (BCB)"]
["LEPORQ FRANCOIS","131887P","CLUB ECOLE HAVRAIS DE BILLARD","LE HAVRE (CEHB)"]
["LEPRETRE BERNARD","164248F","BILLARD CLUB DE BERNAY","BERNAY (BCB)"]
["LEROI JEAN CLAUDE","147405Y","BILLARD CLUB DE LA SAUSSAYE","LA SAUSSAYE (BCS)"]
["LESCAN JACQUES","138167D","BILLARD CLUB SOTTEVILLAIS","SOTTEVILLE (BCS)"]
["LESELLIER PASCAL","017786C","BILLARD CLUB CORMELLOIS","CORMELLES (BCC)"]
["LETELLIER GILLES","172274E","BILLARD CLUB DE SAINT-MARCEL","ST MARCEL (BCSM)"]
["LETULLIER BRUNO","135753H","CLUB ECOLE HAVRAIS DE BILLARD","LE HAVRE (CEHB)"]
["LEVACHER STEPHANE","120314M","BILLARD CLUB DE MAROMME","MAROMME (MBC)"]
["LEVIEUX AURELIEN","163707S","BILLARD CLUB DE MAROMME","MAROMME (MBC)"]
["LEVILLAIN BEURIOT THOMAS","166696R","BILLARD CLUB CANY BARVILLE","CANY-BARVILLE (BCCB)"]
["LHEUREUX RICHARD","133458A","BILLARD CLUB DE LA SAUSSAYE","LA SAUSSAYE (BCS)"]
["LIARD BERNARD","106833Z","BILLARD CLUB CORMELLOIS","CORMELLES (BCC)"]
["LIBERT LOUIS PIERRE","147566Y","BILLARD CLUB CANY BARVILLE","CANY-BARVILLE (BCCB)"]
["LINGRAND BERNARD","162572J","BILLARD CLUB LEXOVIEN","LISIEUX (BCL)"]
["LOMBARD PATRICK","142975B","BILLARD CLUB SOTTEVILLAIS","SOTTEVILLE (BCS)"]
["LORGET EMMANUEL","144781N","BILLARD CLUB OSSELIEN",{"$f":"IFERROR(VLOOKUP(C346,$A$2:$E$22,5,FALSE),\"Club absent\")","v":"OISSEL (BCO)"}]
["LORIN JIMMY","011876U","ROUEN BILLARD CLUB","ROUEN (RBC)"]
["LOUIS ANDRE","171961P","BILLARD CLUB DE SAINT-MARCEL","ST MARCEL (BCSM)"]
["LOURSEL ALAIN","017731Z","ROUEN BILLARD CLUB","ROUEN (RBC)"]
["LOZAC OLIVIER","171890M","BILLARD CLUB CORMELLOIS","CORMELLES (BCC)"]
["MAGNAN JEAN LUC","018043Z","BILLARD CLUB DE LA SAUSSAYE","LA SAUSSAYE (BCS)"]
["MAHEUT ALEXANDRE","160531Q","BILLARD CLUB DE FECAMP","FECAMP (BCF)"]
["MAHIEU NORBERT","122711R","BILLARD CLUB OSSELIEN","OISSEL (BCO)"]
["MAISON MICHEL","150113R","BILLARD CLUB SOTTEVILLAIS","SOTTEVILLE (BCS)"]
["MARCHAIS PHILIPPE","106835B","PATRONAGE LAIQUE ARGENTAN","ARGENTAN (PLA)"]
["MARCHAIS RAPHAEL","171976F","ROUEN BILLARD CLUB","ROUEN (RBC)"]
["MARCIENNE JEAN BAPTISTE","172502C","BILLARD CLUB CORMELLOIS","CORMELLES (BCC)"]
["MARECHAL LAURENT","169559D","BILLARD CLUB EBROICIEN","EVREUX (BCE)"]
["MARGERIE ERIC","168814T","BILLARD CLUB CORMELLOIS","CORMELLES (BCC)"]
["MARRE JEAN CLAUDE","018002K","BILLARD CLUB CORMELLOIS","CORMELLES (BCC)"]
["MARTIN JEAN CHRISTOPHE","017799P","ASSUN BILLARD","URVILLE (ASSUN BC)"]
["MARTINEAU PATRICE","169560E","BILLARD CLUB EBROICIEN","EVREUX (BCE)"]
["MARTINS JOSE BRAZ","154240C","ROUEN BILLARD CLUB","ROUEN (RBC)"]
["MARTORY PASCAL","017664K","BILLARD CLUB OSSELIEN","OISSEL (BCO)"]
["MARTORY PIERRE","144782O","BILLARD CLUB OSSELIEN","OISSEL (BCO)"]
["MARY JEAN CLAUDE","153309Q","BILLARD CLUB DE BERNAY","BERNAY (BCB)"]
["MASSON JEAN PIERRE","158108G","BILLARD CLUB DE LA SAUSSAYE","LA SAUSSAYE (BCS)"]
["MATEOS RAYMOND","126235F","BILLARD CLUB PACEEN","PACY/EURE (BCP)"]
["MAULIEN AXEL","170827G","BILLARD CLUB PACEEN","PACY/EURE (BCP)"]
["MAUNOURY LAURENT","146122C","BILLARD CLUB CORMELLOIS","CORMELLES (BCC)"]
["MAZE JEAN PIERRE","137816Q","CLUB ECOLE HAVRAIS DE BILLARD","LE HAVRE (CEHB)"]
["MEGNAN JEAN PIERRE","133889P","BILLARD CLUB SOTTEVILLAIS","SOTTEVILLE (BCS)"]
["MEMMI GIANLUCA","168681Z","ROUEN BILLARD CLUB","ROUEN (RBC)"]
["MERCET HUGUES","017744M","CLUB ECOLE HAVRAIS DE BILLARD","LE HAVRE (CEHB)"]
["MERETTE MICHEL","146431Z","BILLARD CLUB CANY BARVILLE","CANY-BARVILLE (BCCB)"]
["MICHAULT MARC","163171K","BILLARD AMICAL CLUB LOVERIEN","LOUVIERS (BACL)"]
["MICHON PHILIPPE","165898Z","ROUEN BILLARD CLUB","ROUEN (RBC)"]
["MIGA LAURENT","149312W","BILLARD CLUB OSSELIEN","OISSEL (BCO)"]
["MILLET DANIEL","017867F","BILLARD CLUB OSSELIEN","OISSEL (BCO)"]
["MINAULT JACQUES","144302C","BILLARD CLUB CANY BARVILLE","CANY-BARVILLE (BCCB)"]
["MINOUX JOEL","170818X","BILLARD CLUB CANY BARVILLE","CANY-BARVILLE (BCCB)"]
["MIRKOVIC MICHEL","147085A","BILLARD CLUB EBROICIEN","EVREUX (BCE)"]
["MOLINA CHRISTIAN","145457N","BILLARD CLUB SOTTEVILLAIS","SOTTEVILLE (BCS)"]
["MONNIER WILLIAM","172325K","ROUEN BILLARD CLUB","ROUEN (RBC)"]
["MONTADOR JEAN GABRIEL","131483B","BILLARD CLUB DE SAINT NICOLAS","ST NICOLAS (BCSNA)"]
["MONTAGNE JEAN MARIE","168813S","BILLARD CLUB CORMELLOIS","CORMELLES (BCC)"]
["MOREL FRANCIS","142932K","BILLARD CLUB DE LA SAUSSAYE","LA SAUSSAYE (BCS)"]
["MOREL PATRICE","138381J","BILLARD CLUB OSSELIEN","OISSEL (BCO)"]
["MORLET JEAN","170315A","BILLARD CLUB DE LA SAUSSAYE","LA SAUSSAYE (BCS)"]
["MOTTEAU LAURENT","156736Q","BILLARD CLUB DE BERNAY","BERNAY (BCB)"]
["MOULIN DANIEL","159291S","BILLARD CLUB CORMELLOIS","CORMELLES (BCC)"]
["MOUSSET DAMIEN","170094K","BILLARD CLUB DE FECAMP","FECAMP (BCF)"]
["NEVEU LAURENT","100555N","BILLARD CLUB DE MAROMME","MAROMME (MBC)"]
["NEVEU PATRICK","168019E","BILLARD CLUB DE MAROMME","MAROMME (MBC)"]
["NICOLAS REMY","160828N","ROUEN BILLARD CLUB","ROUEN (RBC)"]
["NOEL GERARD","126227X","CLUB ECOLE HAVRAIS DE BILLARD","LE HAVRE (CEHB)"]
["NOLLAND CHRISTIAN","137340I","BILLARD CLUB DE SAINT NICOLAS","ST NICOLAS (BCSNA)"]
["NOTHEAUX JACQUES","157733Z","BILLARD CLUB SOTTEVILLAIS","SOTTEVILLE (BCS)"]
["NOWAK MICHAEL","017827R","BILLARD CLUB DE LA SAUSSAYE","LA SAUSSAYE (BCS)"]
["OSTOR FRANCK","118847B","BILLARD CLUB DE LA SAUSSAYE","LA SAUSSAYE (BCS)"]
["OUMAZIZ MARC","169327B","BILLARD CLUB DE SAINT NICOLAS","ST NICOLAS (BCSNA)"]
["PAILLIE CYRILLE","134656C","PATRONAGE LAIQUE ARGENTAN","ARGENTAN (PLA)"]
["PAJON MARIE PIERRE","150068S","BILLARD CLUB DE SAINT-MARCEL","ST MARCEL (BCSM)"]
["PARENT ALAIN","017655B","BILLARD CLUB EBROICIEN","EVREUX (BCE)"]
["PARIS OLIVIER","163529Z","BILLARD CLUB CORMELLOIS","CORMELLES (BCC)"]
["PARMENTIER FRANC","017477F","BILLARD CLUB DE LA SAUSSAYE","LA SAUSSAYE (BCS)"]
["PARNY MATYS","169344V","BILLARD CLUB PACEEN","PACY/EURE (BCP)"]
["PATOUREAUX THIERRY","166736K","BILLARD CLUB CANY BARVILLE","CANY-BARVILLE (BCCB)"]
["PATRY BRUNO","168812R","BILLARD CLUB CORMELLOIS","CORMELLES (BCC)"]
["PELLETIER CHRISTIAN","170121P","BILLARD CLUB SOTTEVILLAIS",{"$f":"IFERROR(VLOOKUP(C410,$A$2:$E$22,5,FALSE),\"Club absent\")","v":"SOTTEVILLE (BCS)"}]
["PERRIER JEAN","017694O","BILLARD CLUB DE FECAMP","FECAMP (BCF)"]
["PERROT JACKY","152580Y","BILLARD CLUB CANY BARVILLE","CANY-BARVILLE (BCCB)"]
["PETIT JOHANN","017604C","BILLARD CLUB OSSELIEN","OISSEL (BCO)"]
["PETIT SERGE","168803G","BILLARD CLUB DE MAROMME","MAROMME (MBC)"]
["PETITGRAND CLAUDE","165969B","BILLARD CLUB PACEEN","PACY/EURE (BCP)"]
["PETITON YANN","100516A","BILLARD CLUB DE FECAMP","FECAMP (BCF)"]
["PHILIPPE JEAN","149830J","ROUEN BILLARD CLUB","ROUEN (RBC)"]
["PICANDET FRANCOIS","149401S","BILLARD CLUB CORMELLOIS","CORMELLES (BCC)"]
["PICARD ANDRE","148806W","BILLARD CLUB DE LA SAUSSAYE","LA SAUSSAYE (BCS)"]
["PICARD ARTHUR","160869H","BILLARD CLUB OSSELIEN","OISSEL (BCO)"]
["PICARD CATHERINE","163870V","ASSUN BILLARD","URVILLE (ASSUN BC)"]
["PICARD SERGE","167868Q","BILLARD CLUB OSSELIEN","OISSEL (BCO)"]
["PICQUENOT JEAN PAUL","145453J","ASSUN BILLARD","URVILLE (ASSUN BC)"]
["PIERREL BRUNO","017817H","BILLARD CLUB SOTTEVILLAIS","SOTTEVILLE (BCS)"]
["PIETRZYK JEAN PIERRE","155481B","BILLARD CLUB DE MAROMME","MAROMME (MBC)"]
["PINEL RICHARD","147140K","BILLARD CLUB ANDELYSIEN","LES ANDELYS (BCA)"]
["PITOIS FRANCIS","138573T","ARGENCES BILLARD CLUB","ARGENCES (ABC)"]
["PITZ GEOFFROY","128613R","BILLARD CLUB DE MAROMME","MAROMME (MBC)"]
["PLESSIS GERARD","106837D","PATRONAGE LAIQUE ARGENTAN","ARGENTAN (PLA)"]
["PLOUARD ROLAND","169328C","BILLARD CLUB DE SAINT NICOLAS","ST NICOLAS (BCSNA)"]
["POGNON MARIUS","172029N","BILLARD CLUB DE MAROMME","MAROMME (MBC)"]
["POIGNYE PATRICK","142977D","BILLARD CLUB SOTTEVILLAIS","SOTTEVILLE (BCS)"]
["POLLET DIDIER","112582C","BILLARD CLUB SOTTEVILLAIS","SOTTEVILLE (BCS)"]
["PONTHIEUX CHRISTIAN","017730Y","ROUEN BILLARD CLUB","ROUEN (RBC)"]
["PORET ANDRE","145700W","CLUB ECOLE HAVRAIS DE BILLARD","LE HAVRE (CEHB)"]
["POUCHIN MAX","018050G","BILLARD CLUB CANY BARVILLE","CANY-BARVILLE (BCCB)"]
["POUL RAYMOND","127825J","ASSUN BILLARD","URVILLE (ASSUN BC)"]
["POULAIN JOSE","169329D","BILLARD CLUB DE SAINT NICOLAS","ST NICOLAS (BCSNA)"]
["POULAIN YANNICK","169330E","BILLARD CLUB DE SAINT NICOLAS","ST NICOLAS (BCSNA)"]
["POULET MARC","122687T","BILLARD CLUB DE LA SAUSSAYE","LA SAUSSAYE (BCS)"]
["POUX JEAN LOUIS","147997R","ASSUN BILLARD","URVILLE (ASSUN BC)"]
["PREVOST PATRICE","115463X","BILLARD CLUB DE FECAMP","FECAMP (BCF)"]
["PREVOST PIERRE","117900Q","ARGENCES BILLARD CLUB","ARGENCES (ABC)"]
["PREVOST ROGER","131485D","BILLARD CLUB DE SAINT NICOLAS","ST NICOLAS (BCSNA)"]
["PRIEUR SEBASTIEN","118093B","BILLARD CLUB DE SAINT-MARCEL","ST MARCEL (BCSM)"]
["PRIN MICHAEL","149403V","BILLARD CLUB CORMELLOIS","CORMELLES (BCC)"]
["PROENCA ARMANDO","165901C","BILLARD CLUB DE MAROMME","MAROMME (MBC)"]
["PRUVOST MICHEL","137451P","BILLARD CLUB LEXOVIEN","LISIEUX (BCL)"]
["PUSKAS MATTHIEU","110520U","BILLARD CLUB DE MAROMME","MAROMME (MBC)"]
["QUEILLE RICHARD","162896L","BILLARD CLUB SOTTEVILLAIS","SOTTEVILLE (BCS)"]
["QUESNOT LIONNEL","140480C","ROUEN BILLARD CLUB","ROUEN (RBC)"]
["QUILLAUD GERARD","159709X","BILLARD CLUB SOTTEVILLAIS","SOTTEVILLE (BCS)"]
["QUILLAUD PAULETTE","159713B","BILLARD CLUB SOTTEVILLAIS","SOTTEVILLE (BCS)"]
["RACHET ALAIN","017909V","BILLARD CLUB SOTTEVILLAIS","SOTTEVILLE (BCS)"]
["RAMDANI IBRAHIM","154864F","ROUEN BILLARD CLUB","ROUEN (RBC)"]
["REAUDIN GERARD","017727V","BILLARD CLUB CORMELLOIS","CORMELLES (BCC)"]
["REICHSTADT ERIC","163598Z","BILLARD CLUB DE BERNAY","BERNAY (BCB)"]
["RENAULT LOUIS","170500B","CLUB ECOLE HAVRAIS DE BILLARD","LE HAVRE (CEHB)"]
["RIBOULET LAURENT","116625P","BILLARD CLUB CORMELLOIS","CORMELLES (BCC)"]
["RIGOLET GEORGES","141079D","ARGENCES BILLARD CLUB","ARGENCES (ABC)"]
["RIPOLL JEAN YVES","118084S","BILLARD CLUB DE LA SAUSSAYE","LA SAUSSAYE (BCS)"]
["RIVIERE CLAUDE","159757Z","BILLARD CLUB ANDELYSIEN","LES ANDELYS (BCA)"]
["RIVOAL CYRILLE","140476Y","BILLARD CLUB CORMELLOIS","CORMELLES (BCC)"]
["ROBERGE BRUNO","017572W","ROUEN BILLARD CLUB","ROUEN (RBC)"]
["ROBERT PIERRE","134861Z","BILLARD CLUB DE BERNAY","BERNAY (BCB)"]
["ROBIN JACQUES","124617Z","BILLARD CLUB SOTTEVILLAIS","SOTTEVILLE (BCS)"]
["ROBIN SEBASTIEN","131519L","BILLARD CLUB DE MAROMME","MAROMME (MBC)"]
["ROHART THIERRY","148983N","BILLARD CLUB SOTTEVILLAIS","SOTTEVILLE (BCS)"]
["ROLLAND ALAIN","144165V","CLUB ECOLE HAVRAIS DE BILLARD","LE HAVRE (CEHB)"]
["ROMAIN ANTOINE","166144R","ARGENCES BILLARD CLUB","ARGENCES (ABC)"]
["ROMAIN PATRICK","121127T","CLUB ECOLE HAVRAIS DE BILLARD","LE HAVRE (CEHB)"]
["ROMELE ROLLAND","171934K","BILLARD CLUB CORMELLOIS","CORMELLES (BCC)"]
["RONDU JACQUES","155024E","BILLARD AMICAL CLUB LOVERIEN","LOUVIERS (BACL)"]
["ROQUIGNY REMY","127143D","BILLARD CLUB DE LA SAUSSAYE",{"$f":"IFERROR(VLOOKUP(C474,$A$2:$E$22,5,FALSE),\"Club absent\")","v":"LA SAUSSAYE (BCS)"}]
["ROSCHBACH THIERRY","144717B","PATRONAGE LAIQUE ARGENTAN","ARGENTAN (PLA)"]
["ROSSI FRANCIS","172007P","ROUEN BILLARD CLUB","ROUEN (RBC)"]
["ROUSSEAU GERARD","171005A","ASSUN BILLARD","URVILLE (ASSUN BC)"]
["ROYE EMMANUEL","171889L","BILLARD CLUB CORMELLOIS","CORMELLES (BCC)"]
["ROZE JACQUES","017974I","BILLARD AMICAL CLUB LOVERIEN","LOUVIERS (BACL)"]
["RUEDA RENE","017721P","CLUB ECOLE HAVRAIS DE BILLARD","LE HAVRE (CEHB)"]
["SAINT REQUIER CHRISTIAN","167738Z","BILLARD CLUB DE MAROMME","MAROMME (MBC)"]
["SAMMUT JEAN CLAUDE","147880P","BILLARD CLUB DE FECAMP","FECAMP (BCF)"]
["SAMSON RONALD","017495X","BILLARD CLUB GAILLONNAIS","GAILLON (BCG)"]
["SANDT CHRISTIAN","149174W","BILLARD CLUB SOTTEVILLAIS","SOTTEVILLE (BCS)"]
["SANNIER SERGE","017829T","BILLARD CLUB DE LA SAUSSAYE","LA SAUSSAYE (BCS)"]
["SAUVAGE JEAN PAUL","158548K","ROUEN BILLARD CLUB","ROUEN (RBC)"]
["SAUVAGE XAVIER","166458H","BILLARD CLUB SOTTEVILLAIS","SOTTEVILLE (BCS)"]
["SCHMITT CLAUDE","017478G","BILLARD CLUB DE LA SAUSSAYE","LA SAUSSAYE (BCS)"]
["SCHWARTZ ALAIN","149904P","BILLARD AMICAL CLUB LOVERIEN","LOUVIERS (BACL)"]
["SEGARD PAUL","170495W","BILLARD CLUB DE FECAMP","FECAMP (BCF)"]
["SEGUIN PATRICK","171974D","BILLARD CLUB DE SAINT NICOLAS","ST NICOLAS (BCSNA)"]
["SENCERT DIDIER","109089T","ROUEN BILLARD CLUB","ROUEN (RBC)"]
["SIMON ANDRE","122927Z","BILLARD CLUB CORMELLOIS","CORMELLES (BCC)"]
["SIMON THOMAS","157254D","BILLARD CLUB DE MAROMME","MAROMME (MBC)"]
["SOLMON HERVE","017626Y","BILLARD CLUB GAILLONNAIS","GAILLON (BCG)"]
["SORTAIS CLAUDE","017602A","ROUEN BILLARD CLUB","ROUEN (RBC)"]
["SOULLIER GINO","164003P","CLUB ECOLE HAVRAIS DE BILLARD","LE HAVRE (CEHB)"]
["SPANG PHILIPPE","170314Z","BILLARD CLUB DE LA SAUSSAYE","LA SAUSSAYE (BCS)"]
["STAIGRE JEROME","018141T","BILLARD CLUB DE LA SAUSSAYE","LA SAUSSAYE (BCS)"]
["STEELS JEAN MICHEL","172579L","CLUB ECOLE HAVRAIS DE BILLARD","LE HAVRE (CEHB)"]
["SURLEMONT JEROME","172205E","BILLARD CLUB DE MAROMME","MAROMME (MBC)"]
["TALBOT MICHEL","017544U","ROUEN BILLARD CLUB","ROUEN (RBC)"]
["TALBOT REGIS","170812Q","BILLARD CLUB CANY BARVILLE","CANY-BARVILLE (BCCB)"]
["TELLIER BRUNO","143284Y","BILLARD CLUB GAILLONNAIS","GAILLON (BCG)"]
["THIRY ROBERT","017818I","BILLARD CLUB LEXOVIEN","LISIEUX (BCL)"]
["THOMAS JEANNE","163589P","BILLARD CLUB CORMELLOIS","CORMELLES (BCC)"]
["THOMAS PIERRE","166071M","BILLARD CLUB CORMELLOIS","CORMELLES (BCC)"]
["THORY MICHEL","126230A","CLUB ECOLE HAVRAIS DE BILLARD","LE HAVRE (CEHB)"]
["THUILLIER JEAN CLAUDE","017671R","BILLARD CLUB PACEEN","PACY/EURE (BCP)"]
["THUILLIER PIERRE","136729V","CLUB ECOLE HAVRAIS DE BILLARD","LE HAVRE (CEHB)"]
["TILLON YVES","153297C","BILLARD CLUB DE BERNAY","BERNAY (BCB)"]
["TISSOT JEAN MICHEL","149889Y","ASSUN BILLARD","URVILLE (ASSUN BC)"]
["TOSTAIN ALEX","169973D","CLUB ECOLE HAVRAIS DE BILLARD","LE HAVRE (CEHB)"]
["TOUCHAIS JEAN YVES","170915C","ROUEN BILLARD CLUB","ROUEN (RBC)"]
["TOURNEBIZE BENJAMIN","172312W","BILLARD CLUB DE BERNAY","BERNAY (BCB)"]
["TOUTAIN REMI","159676L","BILLARD CLUB PACEEN","PACY/EURE (BCP)"]
["TREHET SERGE","018140S","BILLARD CLUB GAILLONNAIS","GAILLON (BCG)"]
["TROUSSIER PIERRE","017498A","BILLARD CLUB LEXOVIEN","LISIEUX (BCL)"]
["TY JOSHUA","161122H","BILLARD AMICAL CLUB LOVERIEN","LOUVIERS (BACL)"]
["ULRICH ALAIN","101687B","ASSUN BILLARD","URVILLE (ASSUN BC)"]
["VALLE JOEL","107251B","BILLARD CLUB DE MAROMME","MAROMME (MBC)"]
["VALLIER RENE","166048M","BILLARD CLUB DE MAROMME","MAROMME (MBC)"]
["VALLOIS CHRISTOPHE","166311Y","BILLARD CLUB DE SAINT NICOLAS","ST NICOLAS (BCSNA)"]
["VARACHE ALBAN","100599F","CLUB ECOLE HAVRAIS DE BILLARD","LE HAVRE (CEHB)"]
["VARACHE SERGE","017650W","CLUB ECOLE HAVRAIS DE BILLARD","LE HAVRE (CEHB)"]
["VARIGNON DOMINIQUE","131487F","BILLARD CLUB DE SAINT NICOLAS","ST NICOLAS (BCSNA)"]
["VARIN ODETTE","137522I","BILLARD CLUB ANDELYSIEN","LES ANDELYS (BCA)"]
["VASSEUR YANNICK","122848Y","BILLARD CLUB DE SAINT NICOLAS","ST NICOLAS (BCSNA)"]
["VAUR PHILIPPE","104066O","PATRONAGE LAIQUE ARGENTAN","ARGENTAN (PLA)"]
["VERDREL DIDIER","139912G","BILLARD CLUB DE SAINT NICOLAS","ST NICOLAS (BCSNA)"]
["VEREL SEBASTIEN","141213H","BILLARD CLUB OSSELIEN","OISSEL (BCO)"]
["VERITE LEO","160306W","BILLARD AMICAL CLUB LOVERIEN","LOUVIERS (BACL)"]
["VERITE STEPHANE","160305V","BILLARD AMICAL CLUB LOVERIEN","LOUVIERS (BACL)"]
["VICTORIA VINCENT","100615V","ARGENCES BILLARD CLUB","ARGENCES (ABC)"]
["VIGNE PIERRE","018005N","BILLARD CLUB GAILLONNAIS","GAILLON (BCG)"]
["VIMBERT JEAN","017991Z","CLUB ECOLE HAVRAIS DE BILLARD","LE HAVRE (CEHB)"]
["VINCENT DANIEL","126236G","BILLARD CLUB PACEEN","PACY/EURE (BCP)"]
["VOYER MICHEL","017856U","BILLARD CLUB ANDELYSIEN",{"$f":"IFERROR(VLOOKUP(C538,$A$2:$E$22,5,FALSE),\"Club absent\")","v":"LES ANDELYS (BCA)"}]
["VUILLEQUEY GEORGES","166757H","BILLARD CLUB DE BERNAY","BERNAY (BCB)"]
["WILLEMYNS JACK","126237H","BILLARD CLUB PACEEN","PACY/EURE (BCP)"]
["ZIMMERLIN DANIEL","017923J","BILLARD CLUB SOTTEVILLAIS","SOTTEVILLE (BCS)"]
["ZWAENEPOEL PHILIPPE","124290K","BILLARD CLUB DE SAINT NICOLAS","ST NICOLAS (BCSNA)"]

{"sheet":"Match 01","index":1,"n_rows":26,"n_cols":19,"rows_kept":26,"cut":false,"hidden":false,"merged":[[0,0,0,14],[18,14,20,14],[12,13,14,13],[12,14,14,14],[15,14,17,14],[10,9,10,10],[9,11,9,13],[15,12,17,12],[18,7,20,7],[12,2,14,2],[5,11,5,14],[12,7,14,7],[12,10,14,10],[2,5,2,14],[4,11,4,14],[2,1,3,2],[6,11,6,14],[4,9,7,9],[5,1,9,2],[9,5,9,7],[5,10,6,10],[26,1,26,14],[23,2,23,3],[23,4,23,6],[23,8,23,9],[23,10,23,12],[4,5,4,7],[7,3,7,4],[7,5,7,8],[18,10,20,10],[18,11,20,11],[15,6,17,6],[10,5,10,7],[7,11,7,14],[18,4,20,4],[18,5,20,5],[18,8,20,8],[18,12,20,12],[18,13,20,13],[15,11,17,11],[10,11,10,13],[10,3,10,4],[25,0,25,14],[18,6,20,6],[12,11,14,11],[12,12,14,12],[12,5,14,5],[22,1,22,14],[15,10,17,10],[12,4,14,4],[12,6,14,6],[15,13,17,13],[15,8,17,8],[18,2,20,2],[11,0,11,1],[12,8,14,8],[10,17,10,18],[15,7,17,7],[15,2,17,2],[15,5,17,5],[15,4,17,4]]}
["CHAMPIONNAT DE FRANCE   -   JEUX DE SÉRIE   -   EQUIPES DE CLUB"]
[]
[null,"Version :08\ndu : 08/10/2020",null,null,null,"LIGUE DE NORMANDIE DE BILLARD   -   PHASE QUALIFICATIVE"]
[]
[null,null,null,null,null,"Division",null,null,null,"Lieu de l'épreuve","Club"]
[null,"u",null,null,null,null,null,null,null,null,"n°, rue",{"$f":"IF(L5<>\"\",VLOOKUP(L5,infos_clubs,2,FALSE),\"\")","v":""}]
[null,null,null,null,null,null,null,null,null,null,null,{"$f":"IF(L5<>\"\",VLOOKUP(L5,infos_clubs,3,FALSE),\"\")","v":""}]
[null,null,null,"Rencontre du :",null,null,null,null,null,null,"Code   Ville",{"$f":"IF(L5<>\"\",VLOOKUP(L5,infos_clubs,4,FALSE),\"\")","v":""}]
[]
[null,null,null,null,null,"Nom du club",null,null,"N° équipe",null,null,"Nom du club",null,null,"N° équipe"]
[null,null,null,"Equipe recevante",null,null,null,null,null,"Equipe visiteuse",null,null,null,null,null,null,null,"Quotient"]
["Distance",null,"Format du\nBillard","Nom   -   Prénom\nLicence","Points","Reprises","Série","Moyenne","Points de\nmatch","Nom   -   Prénom\nLicence","Points","Reprises","Série","Moyenne","Points de\nmatch",null,null,"Equipe A","Equipe B"]
["Mode :",{"$f":"IFERROR(VLOOKUP(I5,modes_jeu,2,FALSE),\"\")","v":""},null,null,null,null,null,{"$f":"IF(ISERROR(E13/F13),\"\",E13/F13)","v":""},{"$f":"IF(OR(H13=\"\",N13=\"\"),\"\",IF(E13>K13,2,IF(E13=K13,1,IF(E13<K13,0))))","v":""},null,null,{"$f":"IF(F13>0,F13,\"\")","v":""},null,{"$f":"IF(ISERROR(K13/L13),\"\",K13/L13)","v":""},{"$f":"IF(AND(I13<>\"\",K13<>\"\"),2-I13,\"\")","v":""},null,null,{"$f":"IFERROR(E13/B14,0)","v":0},{"$f":"IFERROR(K13/B14,0)","v":0}]
["Points :",{"$f":"IFERROR(VLOOKUP(I5,modes_jeu,3,FALSE),\"\")","v":""},null,{"$f":"IF(D13<>\"\",VLOOKUP(D13,infos_joueurs,4,FALSE),\"\")","v":""},null,null,null,null,null,{"$f":"IF(J13<>\"\",VLOOKUP(J13,infos_joueurs,4,FALSE),\"\")","v":""}]
["Reprises :",{"$f":"IFERROR(VLOOKUP(I5,modes_jeu,4,FALSE),\"\")","v":""},null,{"$f":"IF(D13<>\"\",VLOOKUP(D13,infos_joueurs,2,FALSE),\"\")","v":""},null,null,null,null,null,{"$f":"IF(J13<>\"\",VLOOKUP(J13,infos_joueurs,2,FALSE),\"\")","v":""}]
["Mode :",{"$f":"IFERROR(VLOOKUP(I5,modes_jeu,5,FALSE),\"\")","v":""},null,null,null,null,null,{"$f":"IF(ISERROR(E16/F16),\"\",E16/F16)","v":""},{"$f":"IF(OR(H16=\"\",N16=\"\"),\"\",IF(E16>K16,2,IF(E16=K16,1,IF(E16<K16,0))))","v":""},null,null,{"$f":"IF(F16>0,F16,\"\")","v":""},null,{"$f":"IF(ISERROR(K16/L16),\"\",K16/L16)","v":""},{"$f":"IF(AND(I16<>\"\",K16<>\"\"),2-I16,\"\")","v":""},null,null,{"$f":"IFERROR(E16/B17,0)","v":0},{"$f":"IFERROR(K16/B17,0)","v":0}]
["Points :",{"$f":"IFERROR(VLOOKUP(I5,modes_jeu,6,FALSE),\"\")","v":""},null,{"$f":"IF(D16<>\"\",VLOOKUP(D16,infos_joueurs,4,FALSE),\"\")","v":""},null,null,null,null,null,{"$f":"IF(J16<>\"\",VLOOKUP(J16,infos_joueurs,4,FALSE),\"\")","v":""}]
["Reprises :",{"$f":"IFERROR(VLOOKUP(I5,modes_jeu,7,FALSE),\"\")","v":""},null,{"$f":"IF(D16<>\"\",VLOOKUP(D16,infos_joueurs,2,FALSE),\"\")","v":""},null,null,null,null,null,{"$f":"IF(J16<>\"\",VLOOKUP(J16,infos_joueurs,2,FALSE),\"\")","v":""}]
["Mode :",{"$f":"IFERROR(VLOOKUP(I5,modes_jeu,8,FALSE),\"\")","v":""},null,null,null,null,null,{"$f":"IF(ISERROR(E19/F19),\"\",E19/F19)","v":""},{"$f":"IF(OR(H19=\"\",N19=\"\"),\"\",IF(E19>K19,2,IF(E19=K19,1,IF(E19<K19,0))))","v":""},null,null,{"$f":"IF(F19>0,F19,\"\")","v":""},null,{"$f":"IF(ISERROR(K19/L19),\"\",K19/L19)","v":""},{"$f":"IF(AND(I19<>\"\",K19<>\"\"),2-I19,\"\")","v":""},null,null,{"$f":"IFERROR(E19/B20,0)","v":0},{"$f":"IFERROR(K19/B20,0)","v":0}]
["Points :",{"$f":"IFERROR(VLOOKUP(I5,modes_jeu,9,FALSE),\"\")","v":""},null,{"$f":"IF(D19<>\"\",VLOOKUP(D19,infos_joueurs,4,FALSE),\"\")","v":""},null,null,null,null,null,{"$f":"IF(J19<>\"\",VLOOKUP(J19,infos_joueurs,4,FALSE),\"\")","v":""}]
["Reprises :",{"$f":"IFERROR(VLOOKUP(I5,modes_jeu,10,FALSE),\"\")","v":""},null,{"$f":"IF(D19<>\"\",VLOOKUP(D19,infos_joueurs,2,FALSE),\"\")","v":""},null,null,null,null,null,{"$f":"IF(J19<>\"\",VLOOKUP(J19,infos_joueurs,2,FALSE),\"\")","v":""}]
[null,null,null,"Totaux",{"$f":"SUM(E13:E21)","v":0},{"$f":"SUM(F13:F21)","v":0},"Moyenne ou Quotient",{"$f":"IFERROR(IF(I5=5,E22/F22,R22),0)","v":0},{"$f":"SUM(I13:I21)","v":0},"Totaux",{"$f":"SUM(K13:K21)","v":0},{"$f":"SUM(L13:L21)","v":0},"Moyenne ou Quotient",{"$f":"IFERROR(IF(I5=5,K22/L22,S22),0)","v":0},{"$f":"SUM(O13:O21)","v":0},null,null,{"$f":"SUM(R13:R19)","v":0},{"$f":"SUM(S13:S19)","v":0}]
[null,"La division 5 affiche la moyenne générale des 3 joueurs, les autres divisions affichent le quotient d'équipe (somme des quotients individuels - Quotient = points marqués / distance à réaliser)"]
[null,null,"Signature du capitaine",null,null,null,null,null,"Signature du capitaine"]
[]
["Ces résultats sont à transmettre (sous 48 heures)  à Philippe LEBOURGEOIS  mail : lebourgeois.mp@gmail.com"]

{"sheet":"Match 02","index":2,"n_rows":26,"n_cols":19,"rows_kept":26,"cut":false,"hidden":false,"merged":[[18,5,20,5],[18,6,20,6],[18,7,20,7],[0,0,0,14],[10,17,10,18],[18,14,20,14],[23,2,23,3],[23,4,23,6],[23,8,23,9],[23,10,23,12],[18,8,20,8],[18,10,20,10],[18,11,20,11],[12,12,14,12],[15,7,17,7],[12,13,14,13],[12,14,14,14],[25,0,25,14],[5,1,9,2],[18,12,20,12],[18,13,20,13],[18,2,20,2],[18,4,20,4],[15,12,17,12],[12,4,14,4],[12,5,14,5],[12,6,14,6],[15,13,17,13],[15,14,17,14],[12,7,14,7],[12,8,14,8],[12,10,14,10],[12,11,14,11],[15,6,17,6],[7,3,7,4],[7,5,7,8],[15,8,17,8],[15,10,17,10],[15,11,17,11],[10,11,10,13],[22,1,22,14],[10,3,10,4],[10,9,10,10],[10,5,10,7],[11,0,11,1],[12,2,14,2],[15,2,17,2],[15,4,17,4],[15,5,17,5],[2,5,2,14],[4,9,7,9],[4,11,4,14],[5,11,5,14],[9,5,9,7],[9,11,9,13],[5,10,6,10],[6,11,6,14],[4,5,4,7],[7,11,7,14]]}
["CHAMPIONNAT DE FRANCE   -   JEUX DE SÉRIE   -   EQUIPES DE CLUB"]
[]
[null,null,null,null,null,"LIGUE DE NORMANDIE DE BILLARD   -   PHASE QUALIFICATIVE"]
[]
[null,null,null,null,null,"Division",null,null,{"$f":"IF('Match 01'!I5<>\"\",'Match 01'!I5,\"\")","v":""},"Lieu de l'épreuve","Club",{"$f":"IF('Match 01'!L5<>\"\",'Match 01'!L5,\"\")","v":""}]
[null,"v",null,null,null,null,null,null,null,null,"n°, rue",{"$f":"IF('Match 01'!L6<>\"\",'Match 01'!L6,\"\")","v":""}]
[null,null,null,null,null,null,null,null,null,null,null,{"$f":"IF('Match 01'!L7<>\"\",'Match 01'!L7,\"\")","v":""}]
[null,null,null,"Rencontre du :",null,{"$f":"IF('Match 01'!F8<>\"\",'Match 01'!F8,\"\")","v":""},null,null,null,null,"Code   Ville",{"$f":"IF('Match 01'!L8<>\"\",'Match 01'!L8,\"\")","v":""}]
[]
[null,null,null,null,null,"Nom du club",null,null,"N° équipe",null,null,"Nom du club",null,null,"N° équipe"]
[null,null,null,"Equipe recevante",null,null,null,null,null,"Equipe visiteuse",null,null,null,null,null,null,null,"Quotient"]
["Distance",null,"Format du\nBillard","Nom   -   Prénom\nLicence","Points","Reprises","Série","Moyenne","Points de\nmatch","Nom   -   Prénom\nLicence","Points","Reprises","Série","Moyenne","Points de\nmatch",null,null,"Equipe A","Equipe B"]
["Mode :",{"$f":"IFERROR(VLOOKUP(I5,modes_jeu,2,FALSE),\"\")","v":""},null,null,null,null,null,{"$f":"IF(ISERROR(E13/F13),\"\",E13/F13)","v":""},{"$f":"IF(OR(H13=\"\",N13=\"\"),\"\",IF(E13>K13,2,IF(E13=K13,1,IF(E13<K13,0))))","v":""},null,null,{"$f":"IF(F13>0,F13,\"\")","v":""},null,{"$f":"IF(ISERROR(K13/L13),\"\",K13/L13)","v":""},{"$f":"IF(AND(I13<>\"\",K13<>\"\"),2-I13,\"\")","v":""},null,null,{"$f":"IFERROR(E13/B14,0)","v":0},{"$f":"IFERROR(K13/B14,0)","v":0}]
["Points :",{"$f":"IFERROR(VLOOKUP(I5,modes_jeu,3,FALSE),\"\")","v":""},null,{"$f":"IF(D13<>\"\",VLOOKUP(D13,infos_joueurs,4,FALSE),\"\")","v":""},null,null,null,null,null,{"$f":"IF(J13<>\"\",VLOOKUP(J13,infos_joueurs,4,FALSE),\"\")","v":""}]
["Reprises :",{"$f":"IFERROR(VLOOKUP(I5,modes_jeu,4,FALSE),\"\")","v":""},null,{"$f":"IF(D13<>\"\",VLOOKUP(D13,infos_joueurs,2,FALSE),\"\")","v":""},null,null,null,null,null,{"$f":"IF(J13<>\"\",VLOOKUP(J13,infos_joueurs,2,FALSE),\"\")","v":""}]
["Mode :",{"$f":"IFERROR(VLOOKUP(I5,modes_jeu,5,FALSE),\"\")","v":""},null,null,null,null,null,{"$f":"IF(ISERROR(E16/F16),\"\",E16/F16)","v":""},{"$f":"IF(OR(H16=\"\",N16=\"\"),\"\",IF(E16>K16,2,IF(E16=K16,1,IF(E16<K16,0))))","v":""},null,null,{"$f":"IF(F16>0,F16,\"\")","v":""},null,{"$f":"IF(ISERROR(K16/L16),\"\",K16/L16)","v":""},{"$f":"IF(AND(I16<>\"\",K16<>\"\"),2-I16,\"\")","v":""},null,null,{"$f":"IFERROR(E16/B17,0)","v":0},{"$f":"IFERROR(K16/B17,0)","v":0}]
["Points :",{"$f":"IFERROR(VLOOKUP(I5,modes_jeu,6,FALSE),\"\")","v":""},null,{"$f":"IF(D16<>\"\",VLOOKUP(D16,infos_joueurs,4,FALSE),\"\")","v":""},null,null,null,null,null,{"$f":"IF(J16<>\"\",VLOOKUP(J16,infos_joueurs,4,FALSE),\"\")","v":""}]
["Reprises :",{"$f":"IFERROR(VLOOKUP(I5,modes_jeu,7,FALSE),\"\")","v":""},null,{"$f":"IF(D16<>\"\",VLOOKUP(D16,infos_joueurs,2,FALSE),\"\")","v":""},null,null,null,null,null,{"$f":"IF(J16<>\"\",VLOOKUP(J16,infos_joueurs,2,FALSE),\"\")","v":""}]
["Mode :",{"$f":"IFERROR(VLOOKUP(I5,modes_jeu,8,FALSE),\"\")","v":""},null,null,null,null,null,{"$f":"IF(ISERROR(E19/F19),\"\",E19/F19)","v":""},{"$f":"IF(OR(H19=\"\",N19=\"\"),\"\",IF(E19>K19,2,IF(E19=K19,1,IF(E19<K19,0))))","v":""},null,null,{"$f":"IF(F19>0,F19,\"\")","v":""},null,{"$f":"IF(ISERROR(K19/L19),\"\",K19/L19)","v":""},{"$f":"IF(AND(I19<>\"\",K19<>\"\"),2-I19,\"\")","v":""},null,null,{"$f":"IFERROR(E19/B20,0)","v":0},{"$f":"IFERROR(K19/B20,0)","v":0}]
["Points :",{"$f":"IFERROR(VLOOKUP(I5,modes_jeu,9,FALSE),\"\")","v":""},null,{"$f":"IF(D19<>\"\",VLOOKUP(D19,infos_joueurs,4,FALSE),\"\")","v":""},null,null,null,null,null,{"$f":"IF(J19<>\"\",VLOOKUP(J19,infos_joueurs,4,FALSE),\"\")","v":""}]
["Reprises :",{"$f":"IFERROR(VLOOKUP(I5,modes_jeu,10,FALSE),\"\")","v":""},null,{"$f":"IF(D19<>\"\",VLOOKUP(D19,infos_joueurs,2,FALSE),\"\")","v":""},null,null,null,null,null,{"$f":"IF(J19<>\"\",VLOOKUP(J19,infos_joueurs,2,FALSE),\"\")","v":""}]
[null,null,null,"Totaux",{"$f":"SUM(E13:E21)","v":0},{"$f":"SUM(F13:F21)","v":0},"Moyenne ou Quotient",{"$f":"IFERROR(IF(I5=5,E22/F22,R22),0)","v":0},{"$f":"SUM(I13:I21)","v":0},"Totaux",{"$f":"SUM(K13:K21)","v":0},{"$f":"SUM(L13:L21)","v":0},"Moyenne ou Quotient",{"$f":"IFERROR(IF(I5=5,K22/L22,S22),0)","v":0},{"$f":"SUM(O13:O21)","v":0},null,null,{"$f":"SUM(R13:R19)","v":0},{"$f":"SUM(S13:S19)","v":0}]
[]
[null,null,"Signature du capitaine",null,null,null,null,null,"Signature du capitaine"]
[]
["Ces résultats sont à transmettre (sous 48 heures) à Philippe LEBOURGEOIS  mail : lebourgeois.mp@gmail.com"]

{"sheet":"Match 03","index":3,"n_rows":26,"n_cols":19,"rows_kept":26,"cut":false,"hidden":false,"merged":[[23,10,23,12],[5,1,10,2],[15,11,17,11],[15,12,17,12],[12,12,14,12],[7,5,7,8],[7,11,7,14],[9,5,9,7],[9,11,9,13],[15,10,17,10],[25,0,25,14],[18,10,20,10],[18,11,20,11],[18,12,20,12],[18,13,20,13],[18,14,20,14],[22,1,22,14],[23,2,23,3],[23,4,23,6],[23,8,23,9],[15,13,17,13],[15,14,17,14],[18,2,20,2],[18,4,20,4],[18,5,20,5],[18,6,20,6],[18,7,20,7],[18,8,20,8],[15,2,17,2],[15,4,17,4],[15,7,17,7],[15,8,17,8],[10,3,10,4],[10,5,10,7],[12,7,14,7],[12,8,14,8],[11,0,11,1],[12,2,14,2],[12,4,14,4],[12,5,14,5],[12,6,14,6],[15,5,17,5],[15,6,17,6],[6,11,6,14],[10,9,10,10],[10,11,10,13],[12,13,14,13],[12,14,14,14],[10,17,10,18],[7,3,7,4],[12,10,14,10],[12,11,14,11],[0,0,0,14],[2,5,2,14],[4,5,4,7],[4,9,7,9],[4,11,4,14],[5,10,6,10],[5,11,5,14]]}
["CHAMPIONNAT DE FRANCE   -   JEUX DE SÉRIE   -   EQUIPES DE CLUB"]
[]
[null,null,null,null,null,"LIGUE DE NORMANDIE DE BILLARD   -   PHASE QUALIFICATIVE"]
[]
[null,null,null,null,null,"Division",null,null,{"$f":"IF('Match 01'!I5<>\"\",'Match 01'!I5,\"\")","v":""},"Lieu de l'épreuve","Club",{"$f":"IF('Match 01'!L5<>\"\",'Match 01'!L5,\"\")","v":""}]
[null,"w",null,null,null,null,null,null,null,null,"n°, rue",{"$f":"IF('Match 01'!L6<>\"\",'Match 01'!L6,\"\")","v":""}]
[null,null,null,null,null,null,null,null,null,null,null,{"$f":"IF('Match 01'!L7<>\"\",'Match 01'!L7,\"\")","v":""}]
[null,null,null,"Rencontre du :",null,{"$f":"IF('Match 01'!F8<>\"\",'Match 01'!F8,\"\")","v":""},null,null,null,null,"Code   Ville",{"$f":"IF('Match 01'!L8<>\"\",'Match 01'!L8,\"\")","v":""}]
[]
[null,null,null,null,null,"Nom du club",null,null,"N° équipe",null,null,"Nom du club",null,null,"N° équipe"]
[null,null,null,"Equipe recevante",null,null,null,null,null,"Equipe visiteuse",null,null,null,null,null,null,null,"Quotient"]
["Distance",null,"Format du\nBillard","Nom   -   Prénom\nLicence","Points","Reprises","Série","Moyenne","Points de\nmatch","Nom   -   Prénom\nLicence","Points","Reprises","Série","Moyenne","Points de\nmatch",null,null,"Equipe A","Equipe B"]
["Mode :",{"$f":"IFERROR(VLOOKUP(I5,modes_jeu,2,FALSE),\"\")","v":""},null,null,null,null,null,{"$f":"IF(ISERROR(E13/F13),\"\",E13/F13)","v":""},{"$f":"IF(OR(H13=\"\",N13=\"\"),\"\",IF(E13>K13,2,IF(E13=K13,1,IF(E13<K13,0))))","v":""},null,null,{"$f":"IF(F13>0,F13,\"\")","v":""},null,{"$f":"IF(ISERROR(K13/L13),\"\",K13/L13)","v":""},{"$f":"IF(AND(I13<>\"\",K13<>\"\"),2-I13,\"\")","v":""},null,null,{"$f":"IFERROR(E13/B14,0)","v":0},{"$f":"IFERROR(K13/B14,0)","v":0}]
["Points :",{"$f":"IFERROR(VLOOKUP(I5,modes_jeu,3,FALSE),\"\")","v":""},null,{"$f":"IF(D13<>\"\",VLOOKUP(D13,infos_joueurs,4,FALSE),\"\")","v":""},null,null,null,null,null,{"$f":"IF(J13<>\"\",VLOOKUP(J13,infos_joueurs,4,FALSE),\"\")","v":""}]
["Reprises :",{"$f":"IFERROR(VLOOKUP(I5,modes_jeu,4,FALSE),\"\")","v":""},null,{"$f":"IF(D13<>\"\",VLOOKUP(D13,infos_joueurs,2,FALSE),\"\")","v":""},null,null,null,null,null,{"$f":"IF(J13<>\"\",VLOOKUP(J13,infos_joueurs,2,FALSE),\"\")","v":""}]
["Mode :",{"$f":"IFERROR(VLOOKUP(I5,modes_jeu,5,FALSE),\"\")","v":""},null,null,null,null,null,{"$f":"IF(ISERROR(E16/F16),\"\",E16/F16)","v":""},{"$f":"IF(OR(H16=\"\",N16=\"\"),\"\",IF(E16>K16,2,IF(E16=K16,1,IF(E16<K16,0))))","v":""},null,null,{"$f":"IF(F16>0,F16,\"\")","v":""},null,{"$f":"IF(ISERROR(K16/L16),\"\",K16/L16)","v":""},{"$f":"IF(AND(I16<>\"\",K16<>\"\"),2-I16,\"\")","v":""},null,null,{"$f":"IFERROR(E16/B17,0)","v":0},{"$f":"IFERROR(K16/B17,0)","v":0}]
["Points :",{"$f":"IFERROR(VLOOKUP(I5,modes_jeu,6,FALSE),\"\")","v":""},null,{"$f":"IF(D16<>\"\",VLOOKUP(D16,infos_joueurs,4,FALSE),\"\")","v":""},null,null,null,null,null,{"$f":"IF(J16<>\"\",VLOOKUP(J16,infos_joueurs,4,FALSE),\"\")","v":""}]
["Reprises :",{"$f":"IFERROR(VLOOKUP(I5,modes_jeu,7,FALSE),\"\")","v":""},null,{"$f":"IF(D16<>\"\",VLOOKUP(D16,infos_joueurs,2,FALSE),\"\")","v":""},null,null,null,null,null,{"$f":"IF(J16<>\"\",VLOOKUP(J16,infos_joueurs,2,FALSE),\"\")","v":""}]
["Mode :",{"$f":"IFERROR(VLOOKUP(I5,modes_jeu,8,FALSE),\"\")","v":""},null,null,null,null,null,{"$f":"IF(ISERROR(E19/F19),\"\",E19/F19)","v":""},{"$f":"IF(OR(H19=\"\",N19=\"\"),\"\",IF(E19>K19,2,IF(E19=K19,1,IF(E19<K19,0))))","v":""},null,null,{"$f":"IF(F19>0,F19,\"\")","v":""},null,{"$f":"IF(ISERROR(K19/L19),\"\",K19/L19)","v":""},{"$f":"IF(AND(I19<>\"\",K19<>\"\"),2-I19,\"\")","v":""},null,null,{"$f":"IFERROR(E19/B20,0)","v":0},{"$f":"IFERROR(K19/B20,0)","v":0}]
["Points :",{"$f":"IFERROR(VLOOKUP(I5,modes_jeu,9,FALSE),\"\")","v":""},null,{"$f":"IF(D19<>\"\",VLOOKUP(D19,infos_joueurs,4,FALSE),\"\")","v":""},null,null,null,null,null,{"$f":"IF(J19<>\"\",VLOOKUP(J19,infos_joueurs,4,FALSE),\"\")","v":""}]
["Reprises :",{"$f":"IFERROR(VLOOKUP(I5,modes_jeu,10,FALSE),\"\")","v":""},null,{"$f":"IF(D19<>\"\",VLOOKUP(D19,infos_joueurs,2,FALSE),\"\")","v":""},null,null,null,null,null,{"$f":"IF(J19<>\"\",VLOOKUP(J19,infos_joueurs,2,FALSE),\"\")","v":""}]
[null,null,null,"Totaux",{"$f":"SUM(E13:E21)","v":0},{"$f":"SUM(F13:F21)","v":0},"Moyenne ou Quotient",{"$f":"IFERROR(IF(I5=5,E22/F22,R22),0)","v":0},{"$f":"SUM(I13:I21)","v":0},"Totaux",{"$f":"SUM(K13:K21)","v":0},{"$f":"SUM(L13:L21)","v":0},"Moyenne ou Quotient",{"$f":"IFERROR(IF(I5=5,K22/L22,S22),0)","v":0},{"$f":"SUM(O13:O21)","v":0},null,null,{"$f":"SUM(R13:R19)","v":0},{"$f":"SUM(S13:S19)","v":0}]
[]
[null,null,"Signature du capitaine",null,null,null,null,null,"Signature du capitaine"]
[]
["Ces résultats sont à transmettre (sous 48 heures) à Philippe LEBOURGEOIS  mail : lebourgeois.mp@gmail.com"]